bitfinex/quotes_ETHUSD_20260103
["timestamp","ask_amount","ask_price","bid_price","bid_amount"]
[1767448420976,0.49477725,3103.4,3103.0,0.001]
[1767448421175,0.49477725,3103.4,3103.0,2.33926733]
[1767448421354,0.49477725,3103.4,3103.0,5.56192623]
[1767448421667,0.002,3103.4,3103.1,2.33826733]
[1767448431615,1.61263156,3103.4,3103.0,0.12993971]
[1767448432175,1.61263156,3103.4,3102.8,0.00080168]
[1767448432176,1.61063156,3103.2,3102.8,0.00080168]
[1767448433178,0.09026144,3103.3,3102.8,0.00080168]
[1767448433381,4.79337496,3103.3,3102.7,2.33826733]
[1767448433555,0.48033918,3103.2,3102.6,3.22505563]
[1767448434059,0.48033918,3103.2,3102.6,5.56332296]
[1767448435283,0.48033918,3103.2,3102.6,5.56212464]
[1767448435983,0.48033918,3103.2,3102.7,2.33826733]
[1767448437264,0.00080168,3103.2,3102.7,2.33826733]
[1767448437585,0.00080168,3103.2,3102.7,5.56124899]
[1767448437978,0.00080168,3103.2,3102.8,2.33726733]
[1767448438968,0.00080168,3103.2,3102.8,2.33626733]
[1767448440085,0.00080168,3103.2,3102.8,2.33526733]
[1767448441085,0.00080168,3103.2,3102.8,2.33426733]
[1767448442082,0.00080168,3103.2,3102.8,2.33326733]
[1767448442977,0.00080168,3103.2,3102.8,2.33426733]
[1767448443154,0.00080168,3103.2,3102.8,2.33326733]
[1767448444189,0.00080168,3103.2,3102.8,2.33226733]
[1767448445276,0.00080168,3103.2,3102.8,2.33126733]
[1767448446987,1.48949353,3103.2,3102.8,0.001]
[1767448447190,1.48949353,3103.2,3102.6,3.22390488]
[1767448447384,0.00080168,3103.2,3102.6,3.22390488]
[1767448447688,0.00080168,3103.2,3102.7,2.3046897]
[1767448448093,0.00080168,3103.2,3102.7,5.52765404]
[1767448451396,0.00080168,3103.2,3102.8,2.3046897]
[1767448452366,0.00180168,3103.2,3103.0,2.3036897]
[1767448452571,0.002,3103.4,3103.2,2.3046897]
[1767448458286,0.002,3103.4,3103.3,2.3046897]
[1767448459602,0.002,3103.4,3103.1,3.2547805]
[1767448460100,0.002,3103.4,3103.1,0.03222583]
[1767448460402,0.002,3103.4,3103.2,2.3046897]
[1767448470520,0.002,3103.4,3103.3,2.34561333]
[1767448474623,0.002,3103.4,3103.2,3.22247449]
[1767448474816,0.002,3103.4,3103.2,2.46604624]
[1767448476242,0.002,3103.4,3103.3,2.49827]
[1767448476539,0.12893888,3103.9,3103.5,2.46604624]
[1767448477030,0.00180176,3104.0,3103.5,2.46604624]
[1767448477433,0.00180176,3104.0,3103.6,2.46604624]
[1767448479131,0.00180176,3104.0,3103.7,2.46604624]
[1767448479317,0.002,3103.9,3103.7,2.46604624]
[1767448482329,0.002,3103.9,3103.6,3.22200455]
[1767448482635,0.002,3103.9,3103.7,2.46604624]
[1767448485098,0.00180176,3104.0,3103.9,2.46604624]
[1767448485426,0.00180176,3104.0,3103.9,2.46404624]
[1767448485649,0.00180176,3104.0,3103.8,2.46604624]
[1767448486535,0.00180176,3104.0,3103.9,2.46604624]
[1767448488240,0.00180176,3104.0,3103.7,6.44390115]
[1767448488423,0.00180176,3104.0,3103.9,2.46604624]
[1767448490437,0.00180176,3104.0,3103.9,5.68779951]
[1767448492808,0.00180176,3104.0,3103.8,0.99722209]
[1767448493010,0.00180176,3104.0,3103.7,2.59495271]
[1767448493224,0.00180176,3104.0,3103.8,2.46604624]
[1767448494411,0.00180176,3104.0,3103.7,0.12890647]
[1767448494938,0.00180176,3104.0,3103.5,5.69846265]
[1767448495124,0.00180176,3104.0,3103.5,6.66528921]
[1767448495848,0.00180176,3104.0,3103.5,5.69846265]
[1767448496011,0.00180176,3104.0,3103.9,0.001]
[1767448496216,0.00180176,3104.0,3103.5,5.69846265]
[1767448499345,0.00180176,3104.0,3103.5,3.22208886]
[1767448499722,0.00180176,3104.0,3103.5,5.57270185]
[1767448499923,0.005,3103.9,3103.5,3.22208886]
[1767448500238,0.00180176,3104.0,3103.5,5.57270185]
[1767448501239,0.00180176,3104.0,3103.4,0.96684214]
[1767448501240,0.32962613,3104.0,3103.4,0.96684214]
[1767448501436,0.005,3103.9,3103.3,2.35061299]
[1767448502523,3.2267675,3103.9,3103.3,2.35061299]
[1767448503751,0.09526144,3103.8,3103.2,0.00080256]
[1767448503925,2.81642721,3103.8,3103.2,0.00080256]
[1767448504125,0.92599622,3103.7,3103.2,0.00080256]
[1767448504520,3.22206469,3103.6,3103.2,0.00080256]
[1767448508130,3.22206469,3103.6,3102.9,2.34961299]
[1767448508131,0.005,3103.5,3102.9,2.34961299]
[1767448508350,0.005,3103.5,3102.8,0.96982466]
[1767448508351,0.006,3103.3,3102.8,0.00280176]
[1767448508560,0.006,3103.3,3102.7,2.35061299]
[1767448508561,0.006,3103.3,3102.7,2.18521475]
[1767448508731,0.00080176,3103.2,3102.7,2.18521475]
[1767448509442,0.33335472,3103.2,3102.7,2.18521475]
[1767448511555,0.17139824,3103.1,3102.6,0.00080168]
[1767448512051,3.55585282,3103.2,3102.6,2.35141467]
[1767448512252,3.72725106,3103.2,3102.6,0.00080168]
[1767448515065,3.72725106,3103.2,3102.6,2.35141467]
[1767448515277,0.37272511,3103.1,3102.6,2.35141467]
[1767448517766,0.37272511,3103.1,3102.7,2.35061299]
[1767448521683,3.59532079,3103.1,3102.7,2.35061299]
[1767448524069,3.59532079,3103.1,3102.6,0.00080168]
[1767448524238,3.59532079,3103.1,3102.6,2.35141467]
[1767448525034,3.59532079,3103.1,3102.6,0.00080168]
[1767448525238,3.59532079,3103.1,3102.6,2.35141467]
[1767448534272,0.37272511,3103.1,3102.6,2.35141467]
[1767448534879,3.59535795,3103.1,3102.6,2.35141467]
[1767448536795,3.59535795,3103.1,3102.7,2.47826602]
[1767448537182,3.59535795,3103.1,3102.6,0.00080168]
[1767448537485,0.17139824,3103.0,3102.6,0.00080168]
[1767448537687,3.59535795,3103.1,3102.6,0.00080168]
[1767448537985,3.59535795,3103.1,3102.4,0.001]
[1767448537986,0.39287127,3103.0,3102.4,0.001]
[1767448538157,0.39287127,3103.0,3102.4,2.47926602]
[1767448540187,3.61561003,3103.0,3102.4,2.47926602]
[1767448540759,3.61561003,3103.0,3102.5,0.002]
[1767448540960,3.61561003,3103.0,3102.5,2.48026602]
[1767448541158,0.361561,3102.9,3102.5,2.48026602]
[1767448542479,3.58444504,3102.9,3102.5,2.48026602]
[1767448543694,3.58444504,3102.9,3102.5,0.001]
[1767448544792,3.58444504,3102.9,3102.4,0.001]
[1767448545990,3.58444504,3102.9,3102.3,2.47906865]
[1767448546170,0.72000079,3102.8,3102.3,2.47906865]
[1767448547492,3.94298345,3102.8,3102.3,2.47906865]
[1767448549080,0.16859656,3102.7,3102.3,0.00080263]
[1767448549395,3.94298345,3102.8,3102.3,2.48106865]
[1767448550295,4.11158001,3102.8,3102.3,0.00280263]
[1767448550485,0.4473141,3102.7,3102.3,2.48106865]
[1767448550796,0.61591066,3102.7,3102.3,0.00280263]
[1767448550996,0.4473141,3102.7,3102.3,0.00280263]
[1767448551162,0.4473141,3102.7,3102.4,2.47726602]
[1767448551569,0.16959656,3102.6,3102.3,0.00280263]
[1767448551769,0.4473141,3102.7,3102.4,2.47826602]
[1767448551969,0.43902975,3102.6,3102.4,2.47826602]
[1767448552198,0.43902975,3102.6,3102.3,0.00280263]
[1767448552398,0.43902975,3102.6,3102.3,2.48106865]
[1767448553685,3.66214822,3102.6,3102.3,2.48106865]
[1767448555408,0.43902975,3102.6,3102.3,2.48106865]
[1767448560509,0.001,3102.7,3102.3,2.48106865]
[1767448561014,0.001,3102.7,3102.4,2.49611001]
[1767448574331,0.001,3102.7,3102.4,2.49811001]
[1767448587452,0.001,3102.7,3102.4,0.002]
[1767448588441,0.001,3102.7,3102.4,2.49911001]
[1767448591438,0.001,3102.7,3102.4,0.002]
[1767448606978,0.51214118,3102.7,3102.3,0.00280263]
[1767448607143,3.39469976,3102.6,3102.3,0.00280263]
[1767448607344,0.17159656,3102.5,3102.3,0.00280263]
[1767448607549,3.39562633,3102.7,3102.3,0.00280263]
[1767448608253,0.17159656,3102.6,3102.3,0.00280263]
[1767448608552,0.17159656,3102.5,3102.3,0.00280263]
[1767448608971,0.17159656,3102.5,3102.3,0.00180263]
[1767448609977,0.66185233,3102.6,3102.3,0.00180263]
[1767448610184,0.83344889,3102.6,3102.3,0.00080263]
[1767448610572,0.00180263,3102.7,3102.3,0.00080263]
[1767448613394,0.17339919,3102.7,3102.3,0.00080263]
[1767448616883,0.00180263,3102.7,3102.3,0.00080263]
[1767448619370,0.00180263,3102.7,3102.3,2.32194116]
[1767448620256,0.00180263,3102.7,3102.3,0.00080263]
[1767448621187,0.00180263,3102.7,3102.4,2.47841082]
[1767448628396,0.001,3103.1,3102.7,2.47841082]
[1767448628586,0.001,3103.1,3102.7,2.47660819]
[1767448628776,3.22362144,3103.1,3102.7,2.47660819]
[1767448629201,0.001,3103.1,3102.7,2.47660819]
[1767448629493,3.22359643,3103.1,3102.7,2.47660819]
[1767448631279,0.001,3103.1,3102.7,2.47660819]
[1767448632168,0.001,3103.1,3102.7,2.72426901]
[1767448637922,0.001,3103.1,3102.7,2.47660819]
[1767448643592,0.001,3103.1,3102.8,2.47841082]
[1767448643902,0.001,3103.1,3102.9,2.51063873]
[1767448644289,0.001,3103.1,3102.9,2.47841082]
[1767448645997,0.001,3103.1,3102.7,3.22299164]
[1767448646197,0.001,3103.1,3102.7,4.15672025]
[1767448648223,0.001,3103.1,3102.7,0.93372861]
[1767448648521,0.001,3103.1,3102.7,4.15671148]
[1767448649923,0.001,3103.1,3102.8,0.03222893]
[1767448650095,0.001,3103.1,3102.8,2.48613302]
[1767448650294,0.001,3103.1,3102.9,2.45390409]
[1767448650603,0.001,3103.1,3103.0,0.03222686]
[1767448652026,0.001,3103.1,3102.9,2.45390409]
[1767448652522,0.001,3103.1,3102.9,2.48613096]
[1767448653927,0.001,3103.1,3102.9,2.45390409]
[1767448654609,0.001,3103.1,3102.9,2.48613198]
[1767448655826,0.001,3103.1,3103.0,2.45390409]
[1767448657724,0.00080176,3103.2,3103.1,2.45390409]
[1767448657902,0.00080176,3103.2,3103.1,2.48612991]
[1767448658430,0.00080176,3103.2,3103.1,2.45390409]
[1767448665628,0.00280176,3103.2,3103.1,2.45390409]
[1767448666126,0.00280176,3103.2,3102.9,2.45390409]
[1767448674440,0.00280176,3103.2,3102.9,2.45490409]
[1767448679245,0.00280176,3103.2,3102.9,0.001]
[1767448679415,0.00280176,3103.2,3102.9,2.45490409]
[1767448685353,0.00280176,3103.2,3102.9,0.001]
[1767448694659,0.00280176,3103.2,3102.9,2.5003034]
[1767448701067,0.17339919,3103.1,3102.6,0.41368494]
[1767448701255,0.17239919,3102.6,3101.9,2.3393715]
[1767448701456,2.72172872,3102.7,3101.9,2.3393715]
[1767448701772,0.00080271,3102.7,3101.9,2.3393715]
[1767448702068,0.00080271,3102.7,3102.0,2.4993034]
[1767448702449,0.96810311,3102.7,3102.0,2.4993034]
[1767448702649,0.96810311,3102.7,3102.1,2.4993034]
[1767448703275,4.19111816,3102.7,3102.1,2.4993034]
[1767448704068,0.96810311,3102.7,3102.1,2.4993034]
[1767448704271,1.05836455,3102.7,3102.1,2.4993034]
[1767448707476,0.96810311,3102.7,3102.1,5.7229066]
[1767448708151,0.96810311,3102.7,3102.1,2.4993034]
[1767448709275,0.96910311,3102.7,3102.1,2.4993034]
[1767448710854,0.96910311,3102.7,3102.1,3.07180285]
[1767448711179,0.96910311,3102.7,3102.2,2.47127084]
[1767448718215,0.96910311,3102.7,3102.3,2.47127084]
[1767448718519,0.00180271,3102.7,3102.3,2.47127084]
[1767448718704,0.00180271,3102.7,3102.4,2.47127084]
[1767448718912,0.00180271,3102.7,3102.6,2.47127084]
[1767448726729,0.00180271,3102.7,3102.5,0.34384964]
[1767448727192,0.00180271,3102.7,3102.3,4.19060436]
[1767448727193,0.00180271,3102.7,3102.3,0.96722556]
[1767448727392,0.00180271,3102.7,3102.3,4.19063884]
[1767448730806,0.00180271,3102.7,3102.0,6.54098589]
[1767448731206,0.00180271,3102.7,3102.1,4.19084311]
[1767448731531,0.3341338,3102.7,3102.1,4.19084311]
[1767448731715,0.3341338,3102.7,3102.1,5.26423576]
[1767448731915,0.3341338,3102.7,3102.2,3.22350981]
[1767448733237,0.00180271,3102.7,3102.3,2.47127084]
[1767448736438,0.00180271,3102.7,3102.3,2.49675468]
[1767448743346,0.00180271,3102.7,3102.1,2.25443207]
[1767448757055,0.3341338,3102.7,3102.1,2.25443207]
[1767448757658,0.00180271,3102.7,3102.1,2.25443207]
[1767448794186,0.00180271,3102.7,3102.2,2.40184207]
[1767448800703,0.00180271,3102.7,3102.3,2.29965508]
[1767448807482,0.00180271,3102.7,3102.4,2.29965508]
[1767448807683,0.00280176,3103.2,3102.7,2.29965508]
[1767448808598,3.39353427,3103.2,3102.7,2.29965508]
[1767448810305,3.98509548,3103.2,3102.7,2.29965508]
[1767448815813,4.31922928,3103.2,3102.4,2.29965508]
[1767448816013,3.72766807,3103.2,3102.4,2.29965508]
[1767448819014,3.72766807,3103.2,3102.5,2.29965508]
[1767448821020,3.72766807,3103.2,3102.6,2.33188611]
[1767448821195,3.39353427,3103.2,3102.6,2.33188611]
[1767448821908,0.17103888,3103.2,3102.6,2.33188611]
[1767448822113,3.39357928,3103.2,3102.7,2.85516299]
[1767448822311,3.39357928,3103.2,3102.7,2.29965508]
[1767448822716,0.17103888,3103.2,3102.8,0.03222895]
[1767448822887,0.17103888,3103.2,3102.7,2.29965508]
[1767448831009,0.17103888,3103.2,3102.8,2.43343505]
[1767448831216,0.17103888,3103.2,3102.8,2.67677856]
[1767448833217,3.39352521,3103.2,3102.8,0.24334351]
[1767448833525,3.39352521,3103.2,3102.6,2.43343505]
[1767448835703,0.17103888,3103.2,3102.6,3.22305411]
[1767448836028,0.17103888,3103.2,3102.7,2.46565337]
[1767448836198,0.00280176,3103.2,3102.7,2.43343505]
[1767448836927,0.00280176,3103.2,3102.9,2.43343505]
[1767448837116,0.00280176,3103.2,3103.0,2.67677856]
[1767448838697,0.00280176,3103.2,3103.0,0.24334351]
[1767448840231,0.00280176,3103.2,3103.1,2.43343505]
[1767448854128,0.00280176,3103.2,3103.0,0.24334351]
[1767448861345,0.00280176,3103.2,3102.9,2.43343505]
[1767448861943,0.00280176,3103.2,3102.9,5.65617661]
[1767448863752,0.00280176,3103.2,3103.0,3.22268698]
[1767448864133,0.00280176,3103.2,3102.9,5.65619124]
[1767448865769,0.00280176,3103.2,3102.9,2.43343505]
[1767448866268,0.00280176,3103.2,3102.9,2.99906247]
[1767448872260,0.00280176,3103.2,3102.9,6.2218343]
[1767448873253,0.00280176,3103.2,3102.9,2.99906247]
[1767448875653,0.00119044,3103.2,3102.9,2.99906247]
[1767448876649,0.00119044,3103.2,3102.9,6.22185258]
[1767448878450,0.00119044,3103.2,3102.9,2.99906247]
[1767448894048,0.33532424,3103.2,3102.6,0.001]
[1767448894250,0.3341338,3103.1,3102.6,0.001]
[1767448894445,0.3341338,3103.1,3102.5,0.001]
[1767448894646,0.09026144,3103.0,3102.5,0.001]
[1767448894846,0.42439524,3103.0,3102.5,0.001]
[1767448895043,0.3341338,3102.9,3102.3,0.00280279]
[1767448895963,0.3341338,3102.7,3102.3,0.00280279]
[1767448896164,1.01211977,3102.7,3102.3,0.00280279]
[1767448896472,1.01211977,3102.7,3102.0,2.4521413]
[1767448896657,1.01292256,3102.7,3102.0,2.4521413]
[1767448898378,3.2231032,3102.6,3102.0,2.4521413]
[1767448898880,3.557237,3102.6,3101.9,0.83623092]
[1767448899280,3.557237,3102.6,3101.9,6.51218838]
[1767448899577,0.3341338,3102.6,3102.0,3.22371942]
[1767448899765,0.3341338,3102.6,3102.0,5.67586072]
[1767448901757,0.3341338,3102.6,3102.0,2.4521413]
[1767448902684,0.3341338,3102.6,3102.0,5.67583794]
[1767448903687,3.55724447,3102.6,3102.0,2.4521413]
[1767448904080,4.24446537,3102.6,3102.0,2.4521413]
[1767448904283,0.3341338,3102.5,3101.9,0.002]
[1767448904856,3.55736561,3102.5,3101.9,0.002]
[1767448908494,0.3341338,3102.4,3101.9,0.002]
[1767448908667,0.3341338,3102.3,3101.9,0.002]
[1767448908869,0.35575116,3102.2,3101.7,3.17882091]
[1767448909093,0.35655372,3102.2,3101.6,5.67825602]
[1767448910093,0.35655372,3102.2,3101.6,2.4541413]
[1767448910303,0.69068752,3102.2,3101.6,5.67827645]
[1767448910984,0.3341338,3102.0,3101.6,0.002]
[1767448911169,3.61503473,3102.1,3101.6,0.002]
[1767448911369,0.39141203,3102.1,3101.6,0.002]
[1767448911598,0.3341338,3102.0,3101.6,0.002]
[1767448913678,0.73814693,3102.0,3101.6,0.002]
[1767448914083,0.3341338,3101.9,3101.5,0.002]
[1767448915694,0.4251978,3102.2,3101.5,0.002]
[1767448915894,0.00080256,3102.2,3101.5,2.4541413]
[1767448916099,0.00080256,3102.2,3101.7,2.4521413]
[1767448916702,0.001,3102.0,3101.7,2.4521413]
[1767448917004,0.001,3102.0,3101.5,2.4541413]
[1767448917909,0.001,3102.0,3101.6,5.67628367]
[1767448921002,0.001,3102.0,3101.7,2.41582847]
[1767448924108,0.001,3102.0,3101.8,2.41582847]
[1767448927907,0.001,3102.0,3101.9,2.41582847]
[1767448932093,0.001,3102.0,3101.5,3.22621786]
[1767448932094,0.001,3102.0,3101.6,2.41582847]
[1767448932921,4.5722005,3102.5,3101.6,2.41582847]
[1767448932922,0.41268494,3102.5,3102.0,2.41582847]
[1767448933213,0.41268494,3102.5,3101.7,0.03224038]
[1767448933214,0.00199228,3103.2,3102.7,2.41482847]
[1767448933427,3.22448185,3103.2,3102.7,2.41482847]
[1767448933612,0.32254818,3103.1,3102.7,2.41482847]
[1767448934715,0.32254818,3103.1,3102.5,2.41582847]
[1767448935225,3.54513253,3103.1,3102.5,2.41582847]
[1767448935404,0.33873915,3103.0,3102.3,2.41663134]
[1767448935826,6.49292608,3103.1,3102.4,2.41582847]
[1767448936120,0.98076795,3103.0,3102.4,2.41582847]
[1767448936620,0.98076795,3103.0,3102.4,5.63913701]
[1767448936830,0.98076795,3103.0,3102.5,2.41582847]
[1767448938533,0.98076795,3103.0,3102.6,2.41582847]
[1767448939207,0.32354818,3103.1,3102.6,2.41582847]
[1767448945426,0.001,3103.1,3102.7,2.41582847]
[1767448946509,0.001,3103.1,3102.7,2.44805846]
[1767448946716,0.001,3103.1,3102.7,2.41582847]
[1767448949740,3.37679414,3103.0,3102.5,0.001]
[1767448949944,3.37679414,3103.0,3102.4,2.41582847]
[1767448950149,3.72379893,3103.0,3102.3,0.00080287]
[1767448950317,3.22279158,3102.9,3102.3,0.00080287]
[1767448950661,0.42900059,3102.8,3102.3,0.00080287]
[1767448950949,0.00080287,3102.7,3102.0,5.5172663]
[1767448951242,0.00080287,3102.7,3102.1,2.29359496]
[1767448951550,0.00080287,3102.7,3102.2,2.29359496]
[1767448954456,0.00080287,3102.7,3102.5,0.001]
[1767448954622,0.40776232,3102.7,3102.5,0.001]
[1767448956053,0.40776232,3102.7,3102.2,2.29359496]
[1767448957182,3.63076277,3102.7,3102.2,2.29359496]
[1767448961951,9.80155677,3102.7,3101.8,0.00080264]
[1767448962156,2.39883028,3102.6,3101.9,2.29359496]
[1767448962355,1.2200387,3102.5,3101.9,2.29359496]
[1767448962958,1.2200387,3102.5,3101.5,0.002]
[1767448962959,8.56993481,3102.4,3101.7,2.29359496]
[1767448963160,0.00080264,3102.2,3101.7,2.29359496]
[1767448963360,0.00080264,3102.2,3102.1,0.002]
[1767448963528,0.00080264,3102.2,3101.7,2.29359496]
[1767448964129,0.00080264,3102.2,3101.6,3.22412867]
[1767448965070,0.00080264,3102.2,3101.6,2.29359496]
[1767448968174,0.00080264,3102.2,3101.6,5.51769355]
[1767448968757,0.00080264,3102.2,3101.7,2.29359496]
[1767448972859,0.00080264,3102.2,3101.8,2.29359496]
[1767448975981,0.00080264,3102.2,3101.9,2.32583326]
[1767448976684,0.00180287,3102.7,3102.2,2.29359496]
[1767448976869,0.00180287,3102.7,3102.2,2.27369217]
[1767448980288,0.00180287,3102.7,3102.0,2.45234277]
[1767448980505,8.79339564,3102.7,3102.0,2.45234277]
[1767448980668,9.9765407,3102.7,3102.0,2.45234277]
[1767448980857,2.94779355,3102.6,3102.0,2.45234277]
[1767448981763,5.29338768,3102.6,3102.1,0.001]
[1767448982491,8.51653446,3102.6,3102.1,0.001]
[1767448985957,0.00180287,3102.7,3102.1,2.48557899]
[1767448986157,0.001,3103.1,3102.7,2.45234277]
[1767448986357,0.001,3103.1,3102.7,2.45034277]
[1767448987591,0.001,3103.1,3102.7,5.67333048]
[1767448987764,0.001,3103.1,3102.8,2.45234277]
[1767448994793,0.001,3103.1,3102.6,0.001]
[1767448995004,0.001,3103.1,3102.6,2.45334277]
[1767448995576,0.001,3103.1,3102.6,2.45134277]
[1767448995783,2.91172692,3103.0,3102.3,3.22420511]
[1767448995999,2.91172692,3103.0,3102.3,5.67654788]
[1767448996191,2.34559413,3103.0,3102.3,5.67654788]
[1767448996501,2.34559413,3103.0,3102.4,3.22330703]
[1767448996901,2.34559413,3103.0,3102.3,5.67651211]
[1767448997806,2.34559413,3103.0,3102.4,3.22330045]
[1767448998103,2.34559413,3103.0,3102.3,2.45314572]
[1767448998708,5.56828419,3103.0,3102.3,5.67652891]
[1767448999408,2.34559413,3103.0,3102.3,5.67652891]
[1767448999596,3.31387836,3103.1,3102.4,2.45234277]
[1767449000309,3.31387836,3103.1,3102.4,5.67559506]
[1767449001206,5.65947249,3103.1,3102.4,2.45234277]
[1767449002289,5.65947249,3103.1,3102.4,5.67564827]
[1767449004206,5.56829598,3103.0,3102.4,3.2233055]
[1767449004392,5.56829598,3103.0,3102.3,3.2251707]
[1767449004582,2.34559413,3102.9,3102.3,3.2251707]
[1767449013727,2.34559413,3102.9,3102.3,5.49825189]
[1767449017193,2.91155152,3102.9,3102.3,5.49825189]
[1767449019994,2.34559413,3102.9,3102.3,5.49825189]
[1767449020494,2.34559413,3102.9,3102.3,8.72166677]
[1767449020724,0.001,3103.1,3102.4,2.27308119]
[1767449021020,0.001,3103.1,3102.5,5.49628828]
[1767449021192,0.001,3103.1,3102.6,2.27308119]
[1767449021589,0.32365188,3103.1,3102.6,2.27308119]
[1767449027504,0.32365188,3103.1,3102.6,5.49618282]
[1767449027915,0.32365188,3103.1,3102.7,2.27308119]
[1767449041444,3.54627553,3103.1,3102.5,2.37877202]
[1767449045345,3.54627553,3103.1,3102.5,2.37977202]
[1767449046249,3.54624392,3103.1,3102.5,5.60294735]
[1767449048060,3.54624392,3103.1,3102.5,2.37977202]
[1767449050850,3.06041372,3103.0,3102.5,0.001]
[1767449052964,6.28312009,3103.0,3102.5,0.001]
[1767449053167,3.06041372,3103.0,3102.5,0.001]
[1767449054458,6.28313296,3103.0,3102.5,0.001]
[1767449062970,3.06041372,3103.0,3102.5,0.001]
[1767449063274,0.32365188,3103.1,3102.5,5.60287902]
[1767449063469,0.001,3103.1,3102.5,5.60287902]
[1767449064154,3.22359141,3103.1,3102.5,5.60287902]
[1767449064861,3.22358721,3103.1,3102.5,5.60287902]
[1767449066176,3.22358721,3103.1,3102.5,2.37977202]
[1767449069378,3.22358721,3103.1,3102.5,5.60296808]
[1767449069676,3.22358721,3103.1,3102.5,2.37977202]
[1767449069969,4.41828012,3103.1,3102.5,2.37977202]
[1767449071979,4.41828012,3103.1,3102.5,5.60297057]
[1767449073653,0.001,3103.1,3102.6,2.26115435]
[1767449075856,0.001,3103.1,3102.6,5.48423659]
[1767449077508,0.001,3103.1,3102.7,2.29338434]
[1767449077700,0.001,3103.1,3102.7,2.26115435]
[1767449079813,0.001,3103.1,3102.7,5.4840918]
[1767449084011,0.001,3103.1,3102.7,2.26115435]
[1767449084186,0.001,3103.1,3102.7,2.25915435]
[1767449086625,0.001,3103.1,3102.7,5.48214941]
[1767449087123,0.001,3103.1,3102.7,2.25915435]
[1767449095837,0.001,3103.1,3102.7,5.48214316]
[1767449097443,0.001,3103.1,3102.7,2.25915435]
[1767449097740,0.001,3103.1,3102.7,2.25715435]
[1767449097931,0.001,3103.1,3102.7,5.48013651]
[1767449100552,0.001,3103.1,3102.7,2.25715435]
[1767449101524,2.27594909,3103.1,3102.6,0.001]
[1767449101930,2.50274323,3103.0,3102.6,0.001]
[1767449103355,2.27494909,3103.0,3102.6,0.001]
[1767449108962,0.001,3103.1,3102.6,0.001]
[1767449109334,2.27594909,3103.1,3102.6,0.001]
[1767449110960,2.27594909,3103.1,3102.6,3.2241032]
[1767449115062,0.001,3103.1,3102.6,3.2241032]
[1767449121482,2.27594909,3103.1,3102.6,0.001]
[1767449121691,0.22779414,3103.0,3102.6,0.001]
[1767449124095,2.27494909,3102.9,3102.6,0.001]
[1767449128790,2.27494909,3102.7,3102.1,0.001]
[1767449128980,2.27575204,3102.7,3101.8,2.48891661]
[1767449129168,2.92410142,3102.6,3101.8,2.48891661]
[1767449129367,2.27494909,3102.5,3101.8,2.48891661]
[1767449129569,2.27494909,3102.5,3101.8,5.71278078]
[1767449131569,5.49818689,3102.5,3101.8,5.71278078]
[1767449133697,5.49818689,3102.5,3101.8,5.71378078]
[1767449133893,0.61473392,3102.4,3101.8,5.71378078]
[1767449141705,0.61573392,3102.4,3101.8,5.71378078]
[1767449143501,0.001,3102.4,3101.9,2.35191676]
[1767449151714,0.001,3102.4,3101.9,5.57568657]
[1767449160026,0.001,3102.4,3101.9,2.35191676]
[1767449160520,0.001,3102.4,3101.9,5.57573783]
[1767449161025,0.001,3102.4,3101.9,2.35191676]
[1767449161318,0.001,3102.4,3101.9,5.57574432]
[1767449161521,0.001,3102.4,3101.9,2.35191676]
[1767449164128,0.001,3102.4,3101.9,5.57573858]
[1767449165327,0.001,3102.4,3101.9,2.35191676]
[1767449169926,0.001,3102.4,3101.9,2.35391676]
[1767449170501,0.001,3102.4,3101.9,5.57774691]
[1767449170702,0.001,3102.4,3101.9,2.35391676]
[1767449173635,0.001,3102.4,3101.9,5.57773431]
[1767449173927,0.001,3102.4,3101.9,2.35391676]
[1767449176531,2.33407668,3102.3,3101.5,2.47794922]
[1767449176725,0.00080272,3102.2,3101.5,2.47794922]
[1767449178747,3.22432151,3102.2,3101.5,2.47794922]
[1767449178918,3.22432151,3102.2,3101.9,0.002]
[1767449179239,0.87818665,3102.1,3101.9,0.002]
[1767449181241,4.10187334,3102.1,3101.5,2.47794922]
[1767449187446,4.10287334,3102.1,3101.5,2.47794922]
[1767449188048,7.32656003,3102.1,3101.5,2.47794922]
[1767449188557,4.10287334,3102.1,3101.5,2.47794922]
[1767449189355,0.96612991,3102.0,3101.5,2.47794922]
[1767449189563,4.18993368,3102.0,3101.5,2.47794922]
[1767449196270,2.41514918,3101.9,3101.5,0.001]
[1767449197459,2.54415418,3101.9,3101.4,0.002]
[1767449197843,3.22393448,3101.8,3101.5,0.002]
[1767449198038,0.89919602,3101.7,3101.5,0.002]
[1767449198241,0.89919602,3101.7,3101.5,0.001]
[1767449199263,0.89919602,3101.7,3101.4,0.002]
[1767449200260,3.22414237,3101.6,3101.4,0.002]
[1767449201266,3.22414237,3101.6,3101.2,2.49729785]
[1767449201561,0.41233384,3101.5,3101.2,2.49729785]
[1767449202275,3.63663496,3101.5,3101.2,2.49729785]
[1767449204560,0.41233384,3101.5,3101.2,2.49729785]
[1767449205860,3.63658844,3101.5,3101.2,2.49729785]
[1767449208856,3.63658844,3101.5,3101.2,0.001]
[1767449209058,3.63658844,3101.5,3100.7,2.48961243]
[1767449209059,2.94981708,3101.3,3100.7,2.48961243]
[1767449209568,3.91754496,3101.3,3100.7,2.48961243]
[1767449211070,3.22455823,3101.2,3100.7,2.48961243]
[1767449214872,3.22555823,3101.2,3100.7,2.48961243]
[1767449215071,4.54019736,3101.2,3100.7,2.48961243]
[1767449215966,7.76475559,3101.2,3100.7,2.48961243]
[1767449217375,7.76475559,3101.2,3100.7,2.48861243]
[1767449217577,10.17990477,3101.2,3100.6,0.002]
[1767449217746,6.95534654,3101.2,3100.6,0.002]
[1767449217946,1.40973629,3101.1,3100.6,2.49829785]
[1767449219545,3.22555823,3101.2,3100.6,2.49829785]
[1767449220645,0.96772788,3101.3,3100.6,6.1769993]
[1767449220849,2.39955582,3101.7,3100.9,2.25536217]
[1767449221070,3.22486495,3101.7,3100.9,2.25536217]
[1767449221647,0.0008028,3101.7,3101.0,2.25536217]
[1767449222049,0.0008028,3101.7,3101.1,2.25536217]
[1767449223175,0.001,3101.2,3101.1,3.22294648]
[1767449228481,3.22483055,3101.9,3101.6,2.25436217]
[1767449229790,0.7,3101.7,3101.6,2.25436217]
[1767449231888,0.7,3101.7,3101.3,5.51280461]
[1767449232196,0.7,3101.7,3101.3,2.28840959]
[1767449232408,0.7,3101.7,3101.3,2.25616505]
[1767449235462,0.7,3101.7,3101.3,6.12536159]
[1767449235662,2.39975302,3101.9,3101.3,6.12536159]
[1767449235862,2.39975302,3101.9,3101.4,0.96749069]
[1767449236588,0.001,3101.9,3101.5,2.25536217]